Cogmind - Beta 16 @@@ ROGUE MODE // 2025.11.08 @ 01:36:31 Player: Red Box Result: Destroyed by HF-SNZ(R) with Subdweller Shrapnel Launcher Performance ------------- Evolutions (0) 0 Regions Visited (3) 600 Robots Destroyed (43) 215 Value Destroyed (1338) 1338 Prototype IDs (2) 40 Alien Tech Used (0) 0 Bonus (90) 90 TOTAL SCORE: 2283 Bonus ------- Follower Combat Kills 90 Cogmind --------- Core Integrity 0/250 Matter 190/300 Energy 200/200 System Corruption 0% Temperature Cool (0) Movement Rolling (100) Location -10/Subcaves Parts ------- > --- POWER (1) -------- Subdweller Power Source > --- PROPULSION (2) --- Compact Wheel Compact Wheel > --- UTILITY (2) ------ Improved Heat Sink Large Storage Unit > --- WEAPON (2) ------- (None) > --- INVENTORY (15) --- Improved Ion Engine Subdweller Monowheel Subdweller Monowheel Subdweller Monowheel Machine Analyzer Scrap Shield Shield Generator Cobbler Unit Subdweller Laser Light Cannon Battle Cannon Slug Cannon Maul Peak State ------------ > --- POWER ------------ Improved Ion Engine > --- PROPULSION ------- Aluminum Leg Aluminum Leg > --- UTILITY ---------- Improved Heat Sink Large Storage Unit > --- WEAPON ----------- Grenade Launcher Maul > --- INVENTORY -------- Improved Ion Engine Light Treads Compact Wheel Compact Wheel Subdweller Monowheel Scrap Suit Improved Heat Sink Shield Generator Shield Generator Beam Cannon Subdweller Machine Gun Light Cannon Slug Cannon Scrap Shield Fragment [Rating: 14] Favorites ----------- Power Improved Ion Engine Engine Improved Ion Engine Propulsion Aluminum Leg Leg Aluminum Leg Wheel Compact Wheel Utility Large Storage Unit Device Improved Heat Sink Storage Large Storage Unit Processor Signal Interpreter Weapon Beam Cannon Energy Gun EM Pulse Gun Energy Cannon Beam Cannon Ballistic Gun Light Assault Rifle Ballistic Cannon Light Cannon Launcher Grenade Launcher Impact Weapon Maul Build | -11 -10 -10 -10 ------- Run | Yrd Mat Min Sub Slots Evolved . | . . . . Power . | . . . . Propulsion . | . . . . Utility . | . . . . Weapon . | . . . . Parts Attached 32 | 7 19 1 5 Power 4 | 1 2 . 1 Engine 4 | 1 2 . 1 Core . | . . . . Reactor . | . . . . Propulsion 8 | 2 4 . 2 Treads . | . . . . Leg 6 | 2 4 . . Wheel 2 | . . . 2 Hover . | . . . . Flight . | . . . . Utility 8 | 2 4 1 1 Device 4 | 1 2 . 1 Storage 3 | 1 2 . . Processor 1 | . . 1 . Hackware . | . . . . Protection . | . . . . Artifact . | . . . . Weapon 12 | 2 9 . 1 Energy Gun 4 | 1 3 . . Energy Cannon 3 | . 3 . . Ballistic Gun 1 | 1 . . . Ballistic Cannon 2 | . 1 . 1 Launcher 1 | . 1 . . Special Weapon . | . . . . Impact Weapon 1 | . 1 . . Slashing Weapon . | . . . . Piercing Weapon . | . . . . Special Melee Weapon . | . . . . Unidentified Prototypes . | . . . . Parts Lost 6 | . 3 . 3 Power . | . . . . Propulsion . | . . . . Utility 1 | . 1 . . Weapon 5 | . 2 . 3 Highest Loss Streak 2 | . 2 . 2 To Critical Strikes . | . . . . Average Backups 13 | 4 13 13 12 Power . | . . 1 1 Propulsion 3 | 3 3 3 2 Utility 3 | . 2 5 4 Weapon 5 | . 6 4 4 Tool/Special . | . . . . Unused Backups 22 | . 2 3 17 Power 1 | . . . 1 Propulsion 5 | . 1 . 4 Utility 8 | . . 2 6 Weapon 8 | . 1 1 6 Tool/Special . | . . . . Average Slot Usage (%) 99 | . 99 99 99 Engine 14 | . 14 14 14 Leg 23 | . 28 28 13 Wheel 4 | . . . 14 Device 13 | . 14 11 14 Storage 14 | . 14 14 14 Energy Gun 3 | . 7 . . Energy Cannon 19 | . 16 27 15 Ballistic Gun 1 | . 3 . . Ballistic Cannon 1 | . . . 2 Launcher 2 | . . . 8 Peak Build Rating 14 | 9 13 13 14 Average Rating 11 | 5 10 12 12 On Entrance 8 | . 9 12 12 Avg Prop Armor Cover (%) . | . . . . Naked Turns . | . . . . Heaviest Build 34 | 11 34 34 34 Greatest Support 32 | 20 20 20 32 Greatest Overweight (x) 2 | . 1 1 2 Average Overweight (x) . | . . 1 . Largest Inventory Capacity 15 | 8 15 15 15 Average Capacity 14 | 6 14 15 15 Most Carried 15 | 5 15 15 15 Average Carried 13 | 4 13 14 13 Final Capacity 15 | 8 15 15 15 Final Carried 15 | 5 15 13 15 Class Distribution -------------------- 100% | Mutant Dominant Class ---------------- Mutant | -10/Materials Mutant | -10/Mines Mutant | -10/Subcaves Resources | -11 -10 -10 -10 ----------- Run | Yrd Mat Min Sub Matter Collected 1125 | 287 360 80 398 Remotely . | . . . . Salvage Created 1495 | 111 818 217 349 Parts 87 | 4 41 17 25 Haulers Intercepted 2 | . 2 . . Recyclers Shooed . | . . . . Parts Field Recycled . | . . . . Retrieved Matter . | . . . . Parts Self-Destructed 11 | . . . 11 Prevented . | . . . . Parts Restored . | . . . . Kills | -11 -10 -10 -10 ------- Run | Yrd Mat Min Sub Combat Hostiles Destroyed 34 | . 16 7 11 Melee 1 | . . . 1 Guns 5 | . 5 . . Cannons 11 | . 8 3 . AOE 17 | . 3 4 10 Classes Destroyed 8 | 2 3 2 1 Worker 1 | . . 1 . Tunneler 2 | 2 . . . Hauler 2 | . 2 . . Recycler 1 | 1 . . . Watcher 3 | . 3 . . Swarmer 3 | . . 3 . Grunt 20 | . 16 4 . Subdweller 11 | . . . 11 Best Kill Streak 4 | 2 3 4 3 Combat Bots Only 3 | . 3 3 3 Max Kills in Single Turn 4 | 1 2 4 2 Gunslinging . | . . . . Exploded 3 | . 2 3 2 Melee 1 | . . . 1 Uniques/NPCs Destroyed . | . . . . Combat | -11 -10 -10 -10 -------- Run | Yrd Mat Min Sub Hostile Shots Fired 104 | . 62 23 19 Missed 27 | . 16 4 7 Hits 77 | . 46 19 12 Projectile 77 | . 46 19 12 AOE 2 | . . . 2 Damage Taken 1309 | . 608 247 454 Core 278 | . 72 54 152 Absorbed by Shields . | . . . . Regen/Repaired (Parts) 56 | . 56 . . Core Remaining (%) 100 | 100 . . . Volleys Fired 155 | 17 80 13 45 Largest 2 | 2 2 2 2 Hottest 120 | 60 120 120 90 Shots Fired 267 | 34 149 26 58 Gun 121 | 34 87 . . Cannon 103 | . 60 24 19 Launcher 43 | . 2 2 39 Special . | . . . . Kinetic 55 | 17 36 . 2 Thermal 153 | 17 95 24 17 Explosive 43 | . 2 2 39 Electromagnetic 16 | . 16 . . Robot Hit Streak 13 | 11 13 6 6 Robot Miss Streak 10 | 3 10 3 2 Penetration Max . | . . . . Secondary Targets 1 | . 1 . . Max Gunslinging Chain 1 | . 1 . . Shots Hit Robots 132 | 25 72 15 20 Core Hits 70 | 7 32 8 23 Critical Kills . | . . . . Critical Parts Destroyed . | . . . . Critical Strikes 2 | . 2 . . Burn 1 | . 1 . . Corrupt 1 | . 1 . . Melee Attacks 25 | . 1 . 24 Impact 25 | . 1 . 24 Slashing . | . . . . Piercing . | . . . . Sneak Attacks . | . . . . Combat Hostiles . | . . . . Follow-up Attacks . | . . . . Damage Inflicted 3165 | 243 1121 572 1229 Guns 785 | 243 542 . . Cannons 888 | . 458 325 105 Explosions 1410 | . 121 247 1042 Melee 82 | . . . 82 Ramming . | . . . . Kinetic 210 | 95 115 . . Thermal 1329 | 148 751 325 105 Explosive 1410 | . 121 247 1042 Electromagnetic 134 | . 134 . . Impact 82 | . . . 82 Slashing . | . . . . Piercing . | . . . . Highest Corruption . | . . . . Average Corruption . | . . . . Corruption Purged . | . . . . Corruption Blocked . | . . . . Overload Shots . | . . . . Overflow Damage . | . . . . Projectiles . | . . . . Explosions . | . . . . Melee . | . . . . Knockbacks . | . . . . Impact . | . . . . Kinetic . | . . . . Secondary . | . . . . Self-Inflicted Damage 30 | . . 18 12 Shots 2 | . . 1 1 Rammed . | . . . . Targets Rammed . | . . . . Kicked . | . . . . Crushed . | . . . . Highest Temperature 195 | 60 195 141 . Average Temperature 45 | 26 44 72 . Received Heat Transfer 459 | . 303 111 45 Siege Activations . | . . . . Martial Activations . | . . . . Shielding Activations . | . . . . Robots Disrupted . | . . . . Combat Hostiles . | . . . . Robots Corrupted . | . . . . Combat Hostiles . | . . . . Parts Fried . | . . . . Impact Corruptions . | . . . . Robots Melted . | . . . . Combat Hostiles . | . . . . Parts Melted 4 | . 3 . 1 Heat Transferred 2920 | 325 1707 666 222 Parts Sabotaged . | . . . . Parts Stolen . | . . . . Parts Stripped . | . . . . Power Chain Reactions . | . . . . Alert | -11 -10 -10 -10 ------- Run | Yrd Mat Min Sub Maximum Alert Level . | . . . . Low Security (%) 100 | 100 100 100 . Level 1 . | . . . . Level 2 . | . . . . Level 3 . | . . . . Level 4 . | . . . . Level 5 . | . . . . High Security . | . . . . Max Security . | . . . . Peak Influence 136 | 10 136 118 . Initial 36 | . . 36 . Average 34 | 1 42 22 . Influence Increases 912 | 15 577 320 . Destroy 0b10 Robot/C 500 | . 320 180 . Destroy 0b10 Robot/NC 45 | 15 25 5 . Destroy Leader 120 | . 80 40 . Allied During Kill 29 | . . 29 . Successful Hack 56 | . 49 7 . Select Force Hacks 60 | . 60 . . Disable Machine 75 | . 30 45 . Destroy Structure 27 | . 13 14 . Influence Decreases 912 | 15 483 414 . Entered New Map 58 | . . 58 . Time Decay 802 | 15 451 336 . Lost Part 22 | . 22 . . Lost Ally 30 | . 10 20 . Squads Dispatched 4 | . 4 . . Investigation 3 | . 3 . . Extermination . | . . . . Reinforcement 1 | . 1 . . Assault . | . . . . Garrison . | . . . . Intercept . | . . . . Searches Triggered . | . . . . Construction Impeded . | . . . . Haulers Reinforced . | . . . . Active Scanning Responses . | . . . . Cargo Convoy Interrupts . | . . . . Stealth | -11 -10 -10 -10 --------- Run | Yrd Mat Min Sub Distress Signals 1 | . 1 . . Communications Jammed . | . . . . Distress Signals . | . . . . Times Spotted 50 | . 27 9 14 Peak Tracking Total 3 | . 3 3 3 Tactical Retreats . | . . . . Traps | -11 -10 -10 -10 ------- Run | Yrd Mat Min Sub Traps Triggered 2 | . 1 . 1 Indirectly . | . . . . Trap Hack Attempts . | . . . . Triggered . | . . . . Disarmed . | . . . . Reprogrammed . | . . . . Reused . | . . . . Traps Extracted . | . . . . Installed . | . . . . Triggered . | . . . . Machines | -11 -10 -10 -10 ---------- Run | Yrd Mat Min Sub Machines Disabled 5 | . 2 3 . Max in Single Turn 2 | . 1 2 . Machines Repaired . | . . . . Machines Dismantled . | . . . . Machines Sabotaged . | . . . . Overloaded Fab Kills . | . . . . Hacking | -11 -10 -10 -10 --------- Run | Yrd Mat Min Sub Machines Accessed 14 | . 10 1 3 Terminals 8 | . 7 1 . Fabricators . | . . . . Repair Stations 1 | . 1 . . Recycling Units 2 | . 2 . . Scanalyzers . | . . . . Garrison Access . | . . . . Total Hacks 47 | . 39 2 6 Successful 35 | . 28 1 6 Failed 12 | . 11 1 . Catastrophic 2 | . 2 . . Database Lockouts . | . . . . Manual 30 | . 28 2 . Terminals 32 | . 30 2 . Fabricators . | . . . . Repair Stations 4 | . 4 . . Recycling Units 5 | . 5 . . Scanalyzers . | . . . . Garrison Access . | . . . . Terminal Hacks 14 | . 7 1 6 Record 4 | . . . 4 Robot Schematic 1 | . . 1 . Robot Analysis 3 | . 3 . . Prototype ID Bank 1 | . 1 . . Open Door 1 | . . . 1 Terminal Index 1 | . 1 . . Locate Traps 1 | . 1 . . Reinforcement Status 1 | . 1 . . Release Object 1 | . . . 1 Fabricator Hacks . | . . . . Repair Station Hacks 4 | . 4 . . Scan Component 2 | . 2 . . Repair 2 | . 2 . . Recycling Unit Hacks 2 | . 2 . . Retrieve Components 2 | . 2 . . Scanalyzer . | . . . . Garrison Access Hacks . | . . . . Unauthorized Hacks 15 | . 15 . . Terminals 12 | . 12 . . Track 2 | . 2 . . Assimilate 5 | . 5 . . Botnet 4 | . 4 . . Operators 1 | . 1 . . Fabricators . | . . . . Repair Stations . | . . . . Recycling Units 3 | . 3 . . Recyclers 1 | . 1 . . Tunnel 2 | . 2 . . Scanalyzers . | . . . . Garrison Access . | . . . . Data Cores Recovered . | . . . . Used . | . . . . Hacking Detections 10 | . 9 1 . Full Trace Events 2 | . 2 . . Feedback Events . | . . . . Feedback Blocked . | . . . . Robot Schematics Acquired 1 | . . 1 . Robots Built . | . . . . Authchips . | . . . . Time . | . . . . Total Robot Build Rating . | . . . . Part Schematics Acquired . | . . . . Parts Built . | . . . . Authchips . | . . . . Time . | . . . . Total Part Build Rating . | . . . . Part Studies Acquired . | . . . . Parts Repaired 2 | . 2 . . Time 52 | . 52 . . Parts Recycled . | . . . . Recycled Matter . | . . . . Retrieved Matter . | . . . . Retrieved Components 11 | . 11 . . Parts Scanalyzed . | . . . . Part Schematics Acquired . | . . . . Parts Damaged . | . . . . Bothacking | -11 -10 -10 -10 ------------ Run | Yrd Mat Min Sub Used RIF Installer . | . . . . Robots Hacked . | . . . . Non-combat . | . . . . Combat . | . . . . Robot Hacks Applied . | . . . . Relay Couplers Released . | . . . . Fabnet Peak Effective % . | . . . . Robots Rewired . | . . . . Allies Hacked . | . . . . Hacks Repelled . | . . . . Allies | -11 -10 -10 -10 -------- Run | Yrd Mat Min Sub Total Allies 5 | . 2 3 . Largest Group 3 | . 2 3 2 Highest-Rated Group 40 | . 20 40 32 Highest-Rated Ally 16 | . 10 16 16 Total Orders 10 | . 4 2 4 STAY 5 | . 2 1 2 FOLLOW 5 | . 2 1 2 Ally Attacks 43 | . . 24 19 Total Damage 297 | . . 218 79 Kills 3 | . . 2 1 Allies Corrupted . | . . . . Allies Melted . | . . . . Intel | -11 -10 -10 -10 ------- Run | Yrd Mat Min Sub Active Infowar (turns) 755 | 25 730 . . Terrain 755 | 25 730 . . Robot Analysis Total 3 | . 3 . . Derelict Logs Recovered 2 | . . 1 1 Drone Launches . | . . . . Drone Recoveries . | . . . . Exploration | -11 -10 -10 -10 ------------- Run | Yrd Mat Min Sub Turns Passed 6544 | 120 2925 1720 1779 Spaces Moved 3406 | 53 1315 876 1162 Core 9 | 9 . . . Treads . | . . . . Legs 2609 | 44 1315 876 374 Wheels 788 | . . . 788 Hover . | . . . . Flight . | . . . . Fastest Speed 50 | 50 120 190 100 Average Speed 168 | 108 185 190 134 Slowest Speed 190 | 120 190 190 190 Overloaded Moves . | . . . . Propulsion Burnouts . | . . . . Robots Hopped . | . . . . Potential Cave-ins . | . . . . Cave-ins Triggered . | . . . . Exploration Rate (%) 64 | 5 97 99 57 Regions Visited 3 Branch Regions 2 Pre-discovered Areas 2 | . 2 . . Known Exits Taken 1 | . . 1 . Unknown Exits Taken 2 | 1 1 . . Scrap Searched 4 | . . 1 3 Spaces Dug 7 | . 2 . 5 Terrain Destroyed 264 | . 20 14 230 Melee 5 | . . . 5 Projectile 2 | . 2 . . AOE 257 | . 18 14 225 Terrain Rammed . | . . . . Walls Destroyed . | . . . . Machines Disabled . | . . . . Actions | -11 -10 -10 -10 --------- Run | Yrd Mat Min Sub Total 3913 | 81 1651 907 1274 Wait 202 | . 192 4 6 Move 3403 | 52 1314 875 1162 Hop . | . . . . Pick Up 43 | 5 22 3 13 Fast Attach 9 | 7 1 . 1 Attach 9 | . 5 1 3 Detach 1 | . . 1 . Swap 35 | . 22 5 8 Drop 31 | . 14 5 12 Fire 155 | 17 80 13 45 Melee 25 | . 1 . 24 Ram . | . . . . Kick . | . . . . Crush . | . . . . Escape Stasis . | . . . . Rewire . | . . . . Trap . | . . . . Miscellaneous . | . . . . Route ------- -11/Scrapyard -10/Materials (discovered 5 exits: *Mat x3 / *Min / *Sub) -10/Mines (discovered 3 exits: *Mat x2 / *Sub) -10/Subcaves (discovered 2 exits: [*Mat x2]) History --------- Turn | Location | Event 9 | -11/Scrapyard | Discovered new exit (range 15) 121 | -11/Scrapyard | Entered Materials 122 | -10/Materials | Met a group of wandering Federalists 138 | -10/Materials | Discovered new exit (range 10) 314 | -10/Materials | Build established: Mutant 904 | -10/Materials | Discovered new exit (range 9) 1117 | -10/Materials | Discovered new exit (range 15) 1533 | -10/Materials | Repaired Grenade Launcher 1865 | -10/Materials | Discovered new exit (range 3) 2024 | -10/Materials | Discovered new exit (range 7) 2391 | -10/Materials | Repaired Beam Cannon 3046 | -10/Materials | Entered Mines 3103 | -10/Mines | Assisted by bots powering up and referring to "LRC-V3" 3167 | -10/Mines | Learned Materials emergency access door positions 3268 | -10/Mines | Found a Scrap Suit stashed away for nefarious purposes 3273 | -10/Mines | Found Scrap Suit 3464 | -10/Mines | A weapon hastily lodged in a ceiling crevice suddenly fell to the ground 3521 | -10/Mines | Discovered new exit (range 13) 3788 | -10/Mines | Discovered new exit (range 7) 4012 | -10/Mines | Core integrity fell below 50% 4231 | -10/Mines | Discovered new exit (range 6) 4244 | -10/Mines | Identified exit to Subcaves 4404 | -10/Mines | Identified exit to Materials 4766 | -10/Mines | Entered Subcaves 4766 | -10/Subcaves | Accompanied by 2 allies 4767 | -10/Subcaves | Approached by a straggling Scientist 5065 | -10/Subcaves | Shifting Twisted Machinery released Multitool 5129 | -10/Subcaves | Visited Clippyterm 5134 | -10/Subcaves | Learned Factory stockpile data 5684 | -10/Subcaves | A swath of the cavern ceiling suddenly collapsed 5715 | -10/Subcaves | Discovered new exit (range 9) 5972 | -10/Subcaves | A swath of the cavern ceiling suddenly collapsed 6068 | -10/Subcaves | Core integrity fell below 20% 6212 | -10/Subcaves | Discovered new exit (range 6) 6449 | -10/Subcaves | Shifting Twisted Machinery released Scrap Shield 6534 | -10/Subcaves | Ambushed by Subdweller buried in earth 6534 | -10/Subcaves | Ambushed by Subdweller buried in earth 6534 | -10/Subcaves | Ambushed by Subdweller buried in earth 6536 | -10/Subcaves | Ambushed by Subdweller buried in earth 6539 | -10/Subcaves | Ambushed by Subdweller buried in earth 6545 | -10/Subcaves | Destroyed by HF-SNZ(R) with Subdweller Shrapnel Launcher Last Messages --------------- 06369_ Dropped Shield Generator. 06371_ Acquired Battle Cannon. Scrap Shield falls loose from the Twisted Machinery. 06456_ Dropped Scrap Suit. 06456_ Acquired Scrap Shield. 06520_ The unstable cave ceiling collapses. 06535_ 1R-HNJ(R): "ARGHSUB!" 06535_ YV-PI7(R): "ARGHSUB!" 06535_ XF-BL2(R): "FREEEEDUMB!" 06535_ The unstable cave ceiling collapses. 06536_ 1R-HNJ(R) destroyed. 06537_ H5-QJV(R): "GOODGOOD!" 06539_ H5-QJV(R) destroyed. 06539_ YV-PI7(R) destroyed. 06540_ HF-SNZ(R): "ARGHSUB!" 06541_ The unstable cave ceiling collapses. 06541_ XF-BL2(R) affixes Scrap Shield Fragment to Scrap Shield. 06545_ Beam Cannon destroyed. 06545_ Grenade Launcher destroyed. Map ----- +----------------------------------------------------+ | ##?????????????????# # | | ###???????????????# ## # ## # ## ! | | * [##??????????????# ########## ## ### * | | ## [ #??????????????# ##????## ## #### ## | | ?## #??????????????# ###### ##??#???? #### | | ### #??????????????# ## ##????????? ?## | | #??????????????# #????###????? ?# | | ##??????????????## ##??## ##??????? | | ###???????????????## ### #??# ##?????? | | #?????????????????# ####?# #???#! ##????? | | ##?????????????????# #???## #???# ####?? | | "#?????????????????# ###### ##???#" ##? | | ##???????????????## ## ## #????#"" #? | | ##??????????????# ###### """ #? | | #??????????????# ## " ## #? | | ###??????????????# ### ## | | ##????????????????# " ####" # | | ##????????????????# "#####?# " "## | | % #????????????????## ##????# " "#? | | #?????????????????## #????#"" #? | | ##??????????????????## ## "#???#"" ## | | #?????##########???## ###### ""#??###" "" | | ####### ##% #??## ;##???##""""#????# | | %% ##??#;;; #????##"###????#### | | # % ##???#; ##?????##??????????# | | #### # ##?????#; @ #?????????????????? | | ???###### #?????# #?????????????????? | | ????????## ###?????# R #?????????????????? | | ?????????## ##??????# ##?????????????????? | | ??????????###??????# #??????????????????? | | ??????????????????# = %= #??????????????????? | | ??????????????????#&% # ##??????????????????? | | ??????????????????# & ##???????????????????? | | ??????????????????## %[ ##????????????????????? | | ???????????????????# R ##?????????????????????? | | ??????????????????? ???????????????????????? | | ??????????????????# # #???????????????????????? | | ??????????????????#######????????????????????????? | | ?????????????????????????????????????????????????? | | ?????????????????????????????????????????????????? | | ?????????????????????????????????????????????????? | | ?????????????????????????????????????????????????? | | ?????????????????????????????????????????????????? | | ?????????????????????????????????????????????????? | | ?????????????????????????????????????????????????? | | ?????????????????????????????????????????????????? | | ?????????????????????????????????????????????????? | | ?????????????????????????????????????????????????? | | ?????????????????????????????????????????????????? | | ?????????????????????????????????????????????????? | +----------------------------------------------------+ Best States ------------- Heat Dissipation 39 Energy Generation 15 Energy Capacity 265 Matter Stores 300 Matter Capacity 300 Sight Range 16 Terrain Scan Range 16 Terrain Scan Density 10 Evasion (%) 55 Item Schematics ----------------- None Robot Schematics ------------------ O-16 Technician | -10/Mines | Hacked Fabricated ------------ Nothing Repaired ---------- Grenade Launcher | 58% | -10/Materials Beam Cannon | 69% | -10/Materials Studied --------- None Alien Tech Used ----------------- None Achievements -------------- None Challenges ------------ None Game ------ Seed MediumScrapoidAccelerator Manual? 0 Play Time 00:44:09 Cumulative 674.9 hours Start 2025.11.08 @ 00:48:25 End 2025.11.08 @ 01:36:31 Sessions 1 Manual Loads 0 Difficulty Rogue Special Mode None Game No. 466 Rogue 466 Adventurer 0 Explorer 0 Win Type - Total 1 Types 1/0/0/0/0/0/0/0/0/0 Lore% 62 Gallery% 66 Achievement% 39 Wizard Run 0 Options --------- Layout 1 ASCII 0 Keyboard 0 Movement Mouse Keybinds 0 Fullscreen 1 Font 20/SmallcapsGlow Map View 54x42 Zoom Use 0% Tactical HUD 1 Map Filters NONE Filters NONE Steam 1 RUN: 5a9f903e-bd3e-4344-8fc1-99ba14efedcf